{"text_format":"1","workbook":"xlsx","n_sheets":1,"sheets":["S1_Volume_Official_Homework"],"not_rendered":{"charts":0,"images":1,"macros":1,"external_links":0,"defined_names":1,"comments":0,"pivot_tables":0},"unopened":[],"bounds":{"document_bytes":16777216,"sheet_cells":100000,"rows_first":2000,"rows_last":500,"rows_between":2000,"halvings":0,"cell_chars":16384,"cell_head_chars":4096},"cells_cut":0,"cells_raw":0,"read":"whole","date_system":"1900"}

{"sheet":"S1_Volume_Official_Homework","index":0,"n_rows":134,"n_cols":41,"rows_kept":134,"cut":false,"hidden":false,"merged":[[72,2,78,31],[90,2,96,31],[106,2,112,31],[87,17,87,18],[87,6,87,8],[119,3,119,4],[117,16,127,32],[124,3,124,4],[46,1,46,2],[46,3,46,5],[46,7,46,8],[46,14,48,31],[46,35,46,37],[48,7,48,9],[38,1,38,2],[38,3,38,5],[38,7,38,9],[38,14,40,31],[42,1,42,2],[42,3,42,5],[2,2,3,5],[2,6,3,32],[5,2,6,5],[5,6,6,32],[8,1,8,32],[28,3,28,30],[29,3,34,30],[38,35,38,38],[42,7,42,8],[42,14,44,31],[42,35,42,37],[40,7,40,9],[44,7,44,9],[10,28,10,30],[10,31,11,32],[12,31,13,32],[20,3,20,30],[21,3,26,30],[50,35,50,37],[133,27,133,32],[52,7,52,9],[50,3,51,4],[50,5,51,5],[50,6,51,7],[129,18,129,20],[66,3,67,4],[70,21,70,23],[58,2,60,31],[50,1,50,2],[50,14,52,31],[88,23,88,24],[84,27,84,28],[82,16,83,17],[82,18,83,18],[66,5,67,5],[68,20,68,21],[70,6,70,8]]}
[]
[]
[null,null,"Name :"]
[]
[]
[null,null,"Teacher :"]
[]
[]
[null,"S1 Official Homework Volume                                                  Created by Mr Lafferty                                                                                                                                                                                                                       St. Ninian's High School                                                                                                                                                                                                         "]
[]
[null,null,null,"This homework covers topics",null,null,null,null,null,null,null,null,null,null,null,null,null,null,null,null,null,null,null,null,null,null,null,null,"Score"]
[]
[null,null,null,"Basic Skills",null,null,null,null,null,null,null,null,null,null,null,null,null,"Harder Volume",null,null,null,null,null,null,null,null,null,null,null,null,null,26]
[]
[null,null,null,"Volume",null,null,null,null,null,null,null,null,null,null,null,null,null,"Working backwards"]
[]
[null,null,null,"Basic Volume",null,null,null,null,null,null,null,null,null,null,null,null,null,"Composite Volume"]
[]
[]
[]
[null,null,null,"Teacher Comments :"]
[]
[]
[]
[]
[]
[]
[]
[null,null,null,"Pupil's Comment :"]
[]
[]
[]
[]
[]
[]
[]
[null,null,"Q1. ","Carry out the following instructions.",null,null,null,null,null,null,null,null,null,null,null,"( NON - CALCULATOR QUESTION )"]
[]
[null,"(a)",null,{"$f":"ROUND(RAND()*(950-730)+730,1)","v":776.4},null,null,"-",{"$f":"ROUND(RAND()*(550-330)+330,1)","v":528.4},null,null,null,"Working : ",null,null,null,null,null,null,null,null,null,null,null,null,null,null,null,null,null,null,null,null,null,null,null,{"$f":"D39-H39","v":248}]
[]
[]
[]
[null,"(b)",null,{"$f":"ROUND(RAND()*(250-15)+15,1)","v":133.69999999999999},null,null,"x",{"$f":"ROUND(RAND()*(9-3)+3,0)*10","v":30},null,null,null,"Working : ",null,null,null,null,null,null,null,null,null,null,null,null,null,null,null,null,null,null,null,null,null,null,null,{"$f":"D43*H43","v":4010.9999999999995}]
[]
[]
[]
[null,"(c) ",null,{"$f":"ROUND(RAND()*(98-32)+32,1)*H47","v":482.30000000000007},null,null,"÷",{"$f":"ROUND(RAND()*(9-4)+4,0)","v":7},null,null,null,"Working : ",null,null,null,null,null,null,null,null,null,null,null,null,null,null,null,null,null,null,null,null,null,null,null,{"$f":"D47/H47","v":68.900000000000006}]
[]
[]
[]
[null,"(d)",null,{"$f":"AJ53","v":"15%"},null,"of",{"$f":"AN51","v":390},null,null,null,null,"Working : ",null,null,null,null,null,null,null,null,null,null,null,null,null,null,null,null,null,null,null,null,null,null,null,{"$f":"AJ52/100*AN51","v":58.5},null,null,null,{"$f":"ROUND(RAND()*(99-22)+22,0)*10","v":390}]
[null,null,null,null,null,null,null,null,null,null,null,null,null,null,null,null,null,null,null,null,null,null,null,null,null,null,null,null,null,null,null,null,null,null,null,{"$f":"ROUND(RAND()*(7-3)+3,0)*5","v":15},"%"]
[null,null,null,null,null,null,null,null,null,null,null,null,null,null,null,null,null,null,null,null,null,null,null,null,null,null,null,null,null,null,null,null,null,null,null,{"$f":"CONCATENATE(AJ52,AK52)","v":"15%"}]
[null,null,null,null,null,null,null,null,null,null,null,null,null,null,null,null,null,null,null,null,null,null,null,null,null,null,null,null,"( 5 marks )"]
[]
[]
[null,null,"Q2.  Write a sentence to describe volume."]
[]
[]
[]
[]
[null,null,null,null,null,null,null,null,null,null,null,null,null,null,null,null,null,null,null,null,null,null,null,null,null,null,null,null,"( 2 marks )"]
[]
[null,null,"Q3.  Calculate the volume for each shape.",null,null,null,null,null,null,null,null,null,null,null,null,null,null,null,null,null,null,null,null,null,null,null,null,null,null,null,null,null,null,null,null,{"$f":"ROUND(RAND()*(9-3)+3,0)*10","v":70},null,{"$f":"ROUND(RAND()*(10-3)+3,0)","v":6}]
[null,null,null,null,null,null,null,null,null,null,null,null,null,null,null,null,null,null,null,null,null,null,null,null,null,null,null,null,null,null,null,null,null,null,null,{"$f":"ROUND(RAND()*(9-5)+5,0)","v":8},null,{"$f":"CONCATENATE(AL64,\"m\")","v":"6m"}]
[null,null,"(a)",null,null,null,null,null,null,null,null,null,null,null,null,null,"(b)",null,null,null,null,null,null,"Cube",null,null,null,null,null,null,null,null,null,null,null,{"$f":"ROUND(RAND()*(5-2)+2,1)","v":3.3}]
[null,null,null,{"$f":"AJ66","v":3.3},null,"cm"]
[null,null,null,null,null,null,null,null,null,null,null,null,null,{"$f":"AJ65","v":8},"cm"]
[null,null,null,null,null,null,null,null,{"$f":"AJ64","v":70},"cm",null,null,null,null,null,null,null,null,null,null,{"$f":"AL65","v":"6m"}]
[null,null,null,null,null,null,null,null,null,null,null,null,null,null,null,null,null,null,null,null,null,null,null,null,null,null,null,null,"( 6 marks )"]
[null,null,null,"Volume =",null,null,null,null,null,"cm3",null,null,null,null,null,null,null,null,"Volume =",null,null,null,null,null,"m3",null,null,null,null,null,null,null,null,null,null,{"$f":"AJ64*AJ65*AJ66","v":1848},null,{"$f":"AL64*AL64*AL64","v":216}]
[]
[]
[]
[]
[]
[]
[]
[]
[]
[]
[null,null,{"$f":"\"Q4.    A cuboid shaped tropical fish tank is filled with water. \"","v":"Q4.    A cuboid shaped tropical fish tank is filled with water. "},null,null,null,null,null,null,null,null,null,null,null,null,null,null,null,null,null,null,null,null,null,null,null,null,null,null,null,null,null,null,null,null,{"$f":"ROUND(RAND()*(12-8)+8,0)*10","v":100}]
[null,null,null,null,null,null,null,null,null,null,null,null,null,null,null,null,{"$f":"AJ85","v":30},null,"cm"]
[null,null,null,null,"Calculate the volume of water in the tank.",null,null,null,null,null,null,null,null,null,null,null,null,null,null,null,null,null,null,null,null,null,null,null,null,null,null,null,null,null,null,{"$f":"ROUND(0.8*AJ82,-1)","v":80}]
[null,null,null,null,null,null,null,null,null,null,null,null,null,null,null,null,null,null,null,null,null,null,null,null,null,null,null,{"$f":"AJ84","v":80},null,"cm",null,null,null,null,null,{"$f":"ROUND(0.4*AJ84,-1)","v":30},null,null,null,null,{"$f":"ROUND(RAND()*(1-0)+0,0)","v":1}]
[null,null,null,null,null,null,null,null,null,null,null,null,null,null,null,null,null,null,null,null,null,null,null,null,null,null,null,null,null,null,null,null,null,null,null,{"$f":"AJ82","v":100},null,null,null,null,{"$f":"IF(AO85=0,AM86+AL83,AM86-AL83)","v":0}]
[null,null,null,null,null,null,null,null,null,null,null,null,null,null,null,null,null,null,null,null,null,null,null,null,null,null,null,null,null,null,null,null,null,null,null,{"$f":"ROUND(AJ82*0.2,0)","v":20},null,null,null,null,{"$f":"AL84*AO86","v":0}]
[null,null,null,null,null,null,null,null,null,"cm3",null,null,null,null,null,null,null,{"$f":"AJ87","v":20},null,"cm",null,null,null,null,null,null,null,null,null,null,null,null,null,null,null,{"$f":"AJ84-AJ85","v":50},null,null,null,null,{"$f":"AL86*AO86","v":0}]
[null,null,null,null,null,null,null,null,null,null,null,null,null,null,null,null,null,null,null,null,null,null,null,{"$f":"AJ82","v":100},null,"cm",null,null,"( 3 marks )",null,null,null,null,null,null,{"$f":"AJ86*AJ87*AJ88","v":100000}]
[]
[]
[]
[]
[]
[]
[]
[]
[]
[]
[null,null,{"$f":"\"Q5.  A packet of cereal is cuboid in shape. The volume of the packet is \"&AJ105&\" cubic centimetres.\"","v":"Q5.  A packet of cereal is cuboid in shape. The volume of the packet is 2856 cubic centimetres."}]
[null,null,null,null,null,null,null,null,null,null,null,null,null,null,null,null,null,null,null,null,null,null,null,null,null,null,null,null,null,null,null,null,null,null,null,{"$f":"ROUND(RAND()*(20-12)+12,0)","v":14},"l"]
[null,null,null,{"$f":"\"The length is \"&AJ101&\"cm and the breadth is \"&AJ102&\"cm.\"","v":"The length is 14cm and the breadth is 6cm."},null,null,null,null,null,null,null,null,null,null,null,null,null,null,null,null,null,null,null,null,null,null,null,"( 3 marks )",null,null,null,null,null,null,null,{"$f":"ROUND(RAND()*(10-6)+6,0)","v":6},"b"]
[null,null,null,null,null,null,null,null,null,null,null,null,null,null,null,null,null,null,null,null,null,null,null,null,null,null,null,null,null,null,null,null,null,null,null,{"$f":"ROUND(RAND()*(50-30)+30,0)","v":34},"h"]
[null,null,null,"Calculate the height of the packet.",null,null,null,null,null,null,null,null,null,null,null,null,null,null,null,null,null,null,null,null,null,null,null,null,"cm"]
[null,null,null,null,null,null,null,null,null,null,null,null,null,null,null,null,null,null,null,null,null,null,null,null,null,null,null,null,null,null,null,null,null,null,null,{"$f":"AJ101*AJ102*AJ103","v":2856}]
[]
[]
[]
[]
[]
[]
[]
[]
[]
[]
[]
[]
[null,null,{"$f":"\"Q6. Calculate the volume of this composite shape.\"","v":"Q6. Calculate the volume of this composite shape."}]
[null,null,null,null,null,null,null,null,null,null,null,null,null,null,null,null,null,null,null,null,null,null,null,null,null,null,null,null,null,null,null,null,null,null,null,null,null,null,{"$f":"ROUND(RAND()*(3-1)+1,0)","v":3}]
[null,null,null,{"$f":"AJ122","v":6},null,"cm",null,null,null,null,null,null,null,null,null,null,null,null,null,null,null,null,null,null,null,null,null,null,null,null,null,null,null,null,null,{"$f":"ROUND(RAND()*(20-14)+12,0)","v":15},{"$f":"ROUND(RAND()*(3-1)+1,0)","v":3}]
[null,null,null,null,null,null,null,null,null,null,null,null,null,null,null,null,null,null,null,null,null,null,null,null,null,null,null,null,null,null,null,null,null,null,null,{"$f":"AJ120-AK120","v":12},{"$f":"ROUND(RAND()*(3-1)+1,0)","v":3}]
[null,null,null,null,null,null,null,null,null,null,{"$f":"AJ121","v":12},"cm",null,null,null,null,null,null,null,null,null,null,null,null,null,null,null,null,null,null,null,null,null,null,null,{"$f":"ROUND(AJ121/2,0)","v":6}]
[null,null,null,null,null,null,null,null,null,null,null,null,null,null,null,null,null,null,null,null,null,null,null,null,null,null,null,null,null,null,null,null,null,null,null,{"$f":"AJ121-AK121","v":9},{"$f":"ROUND(RAND()*(3-1)+1,0)","v":1}]
[null,null,null,null,null,null,null,null,null,null,null,{"$f":"AJ124","v":8},"cm",null,null,null,null,null,null,null,null,null,null,null,null,null,null,null,null,null,null,null,null,null,null,{"$f":"AJ123-AK123","v":8}]
[null,null,null,{"$f":"AJ120","v":15},null,"cm",null,null,null,null,null,null,null,null,null,null,null,null,null,null,null,null,null,null,null,null,null,null,null,null,null,null,null,null,null,{"$f":"AJ123-AJ124","v":1}]
[null,null,null,null,null,null,null,null,null,null,null,null,null,null,null,null,null,null,null,null,null,null,null,null,null,null,null,null,null,null,null,null,null,null,null,{"$f":"AJ120-AJ121","v":3}]
[null,null,null,null,null,null,null,null,null,null,null,null,null,null,null,null,null,null,null,null,null,null,null,null,null,null,null,null,null,null,null,null,null,null,null,{"$f":"AJ121*AJ125*AJ122","v":72}]
[null,null,null,null,null,null,null,null,null,null,null,null,null,null,null,null,null,null,null,null,null,null,null,null,null,null,null,null,null,null,null,null,null,null,null,{"$f":"AJ123*AJ122*AJ126","v":162}]
[null,null,null,null,null,null,null,null,{"$f":"AJ123","v":9},"cm"]
[null,null,null,null,null,null,null,null,null,null,null,null,null,null,null,null,null,null,null,null,null,"cm3",null,null,null,null,null,"( 7 marks )",null,null,null,null,null,null,null,{"$f":"AJ127+AJ128","v":234}]
[]
[]
[]
[null,null,null,null,null,null,null,null,null,null,null,null,null,null,null,null,null,null,null,null,null,null,null,null,null,null,null,"Total marks 26 "]